Cogmind - Beta 11 X5 @@@ ROGUE MODE // 2021.06.05 @ 11:21:23 Player: JuliaScythe Result: Self-destructed Performance ------------- Evolutions (2) 1000 Regions Visited (5) 1000 Robots Destroyed (14) 70 Value Destroyed (168) 168 Prototype IDs (2) 40 Alien Tech Used (0) 0 Bonus (189) 189 TOTAL SCORE: 2467 Bonus ------- Follower Combat Kills 28 Aligned with FarCom 300 Friendly Fire -139 Cogmind --------- Core Integrity 458/550 Matter 300/300 Energy 100/100 System Corruption 7% Temperature Cool (0) Movement Core (150) Ox2 Location -8/Materials Parts ------- > --- POWER (2) -------- (None) > --- PROPULSION (3) --- (None) > --- UTILITY (4) ------ Small Storage Unit > --- WEAPON (2) ------- Great Axe > --- INVENTORY (8) ---- Light Treads Light Treads Cesium-ion Thruster Light EM Pulse Cannon YOLO Cannon Peak State ------------ > --- POWER ------------ Light Nuclear Core > --- PROPULSION ------- Wheel Compact Wheel > --- UTILITY ---------- Small Storage Unit Propulsion Shielding > --- WEAPON ----------- YOLO Cannon > --- INVENTORY -------- Ion Engine Light Treads Light Treads Small Laser Heavy Assault Rifle Grenade Launcher Great Axe [Rating: 28] Favorites ----------- Power Ion Engine Engine Ion Engine Power Core Light Nuclear Core Propulsion Wheel Leg Aluminum Leg Wheel Wheel Utility Small Storage Unit Storage Small Storage Unit Protection Propulsion Shielding Weapon YOLO Cannon Energy Gun Small Laser Energy Cannon YOLO Cannon Launcher Grenade Launcher Slashing Weapon Great Axe Build | -11 -10 -10 -10 -9 -8 ------- Run | Scr Mat Min Exi Min Mat Slots Evolved 4 | . . . . . 4 Power 1 | . . . . . 1 Propulsion 1 | . . . . . 1 Utility 2 | . . . . . 2 Weapon . | . . . . . . Parts Attached 10 | . 4 . 2 2 2 Power 1 | . . . . 1 . Engine . | . . . . . . Core 1 | . . . . 1 . Reactor . | . . . . . . Propulsion 3 | . 2 . . 1 . Treads . | . . . . . . Leg . | . . . . . . Wheel 3 | . 2 . . 1 . Hover . | . . . . . . Flight . | . . . . . . Utility 1 | . 1 . . . . Device . | . . . . . . Storage . | . . . . . . Processor . | . . . . . . Hackware . | . . . . . . Protection 1 | . 1 . . . . Artifact . | . . . . . . Weapon 5 | . 1 . 2 . 2 Energy Gun . | . . . . . . Energy Cannon 3 | . 1 . 2 . . Ballistic Gun . | . . . . . . Ballistic Cannon . | . . . . . . Launcher 1 | . . . . . 1 Special Weapon . | . . . . . . Impact Weapon . | . . . . . . Slashing Weapon 1 | . . . . . 1 Piercing Weapon . | . . . . . . Special Melee Weapon . | . . . . . . Unidentified Prototypes 2 | . . . 2 . . Parts Lost 7 | . . . . 2 5 Power 2 | . . . . 1 1 Propulsion 3 | . . . . 1 2 Utility 1 | . . . . . 1 Weapon 1 | . . . . . 1 Highest Loss Streak 3 | . . . . 2 3 Average Slot Usage (%) 80 | . 89 100 90 82 46 Engine 10 | . 14 14 14 11 . Core 1 | . . . . . 6 Wheel 24 | . 21 28 28 28 8 Storage 13 | . 14 14 14 14 9 Protection 12 | . 4 14 14 14 7 Energy Gun 3 | . 17 14 5 . . Energy Cannon 12 | . 10 14 13 14 2 Naked Turns . | . . . . . . Heaviest Build 33 | 13 15 15 33 29 29 Greatest Support 26 | 20 20 20 20 26 26 Greatest Overweight (x) 3 | . . . 1 1 3 Average Overweight (x) . | . . . . . . Largest Inventory Capacity 8 | 8 8 8 8 8 8 Average Capacity 8 | 8 8 8 8 8 8 Most Carried 8 | 6 8 7 8 8 8 Average Carried 7 | 6 6 7 7 7 6 Final Capacity 8 | 8 8 8 8 8 8 Final Carried 8 | 6 7 7 8 7 6 Class Distribution -------------------- 100% | Mutant Dominant Class ---------------- Mutant | -10/Materials Mutant | -10/Mines Mutant | -10/Exiles Mutant | -9/Mines Mutant | -8/Materials Resources | -11 -10 -10 -10 -9 -8 ----------- Run | Scr Mat Min Exi Min Mat Matter Collected 280 | 200 30 . . 50 . Remotely . | . . . . . . Salvage Created 285 | . 51 . . 174 60 Parts 22 | . 8 . . 11 3 Haulers Intercepted . | . . . . . . Recyclers Shooed . | . . . . . . Parts Field Recycled . | . . . . . . Retrieved Matter . | . . . . . . Parts Self-Destructed . | . . . . . . Prevented . | . . . . . . Kills | -11 -10 -10 -10 -9 -8 ------- Run | Scr Mat Min Exi Min Mat Combat Hostiles Destroyed 11 | . 3 . . 6 2 Melee 1 | . . . . . 1 Guns 2 | . 2 . . . . Cannons 1 | . 1 . . . . AOE 5 | . . . . 5 . Classes Destroyed 5 | . 1 . . 3 1 Tunneler 1 | . . . . 1 . Recycler 1 | . . . . 1 . Swarmer 10 | . 3 . . 6 1 Grunt 1 | . . . . 1 . Sentry 1 | . . . . . 1 Best Kill Streak 4 | . 3 . . 4 1 Combat Bots Only 3 | . 3 . . 3 1 Max Kills in Single Turn 2 | . 1 . . 2 1 Gunslinging . | . . . . . . Exploded 2 | . . . . 2 . Melee 1 | . . . . . 1 Uniques/NPCs Destroyed . | . . . . . . Combat | -11 -10 -10 -10 -9 -8 -------- Run | Scr Mat Min Exi Min Mat Damage Taken 841 | . 102 . . 379 360 Core 133 | . . . . 41 92 Absorbed by Shields . | . . . . . . Core Remaining (%) 91 | 100 . . . 83 . Volleys Fired 19 | . 9 . . 9 1 Largest 2 | . 2 . . 1 1 Hottest 100 | . 100 . . 100 100 Shots Fired 28 | . 18 . . 9 1 Gun 9 | . 9 . . . . Cannon 19 | . 9 . . 9 1 Launcher . | . . . . . . Special . | . . . . . . Kinetic . | . . . . . . Thermal 28 | . 18 . . 9 1 Explosive . | . . . . . . Electromagnetic . | . . . . . . Robot Hit Streak 2 | . 2 . . . 1 Robot Miss Streak 6 | . 6 . . 3 . Penetration Max . | . . . . . . Secondary Targets . | . . . . . . Shots Hit Robots 7 | . 4 . . . 3 Core Hits 12 | . 3 . . 8 1 Critical Kills 2 | . . . . 1 1 Critical Parts Destroyed . | . . . . . . Critical Strikes 2 | . . . . 1 1 Meltdown 2 | . . . . 1 1 Melee Attacks 35 | . . . . . 35 Impact . | . . . . . . Slashing 35 | . . . . . 35 Piercing . | . . . . . . Sneak Attacks 1 | . . . . . 1 Combat Hostiles . | . . . . . . Follow-up Attacks . | . . . . . . Damage Inflicted 1094 | . 52 . . 730 312 Guns 34 | . 34 . . . . Cannons 337 | . 18 . . 197 122 Explosions 588 | . . . . 533 55 Melee 135 | . . . . . 135 Ramming . | . . . . . . Kinetic . | . . . . . . Thermal 959 | . 52 . . 730 177 Explosive . | . . . . . . Electromagnetic . | . . . . . . Impact . | . . . . . . Slashing 135 | . . . . . 135 Piercing . | . . . . . . Highest Corruption 7 | . . . . . 7 Average Corruption 4 | . . . . . 4 Corruption Purged . | . . . . . . Effects 2 | . . . . . 2 Heat Flow Errors 1 | . . . . . 1 Energy Discharges 1 | . . . . . 1 Overload Shots . | . . . . . . Overflow Damage 128 | . . . . 56 72 Projectiles 2 | . . . . 2 . Explosions 69 | . . . . 54 15 Melee 57 | . . . . . 57 Knockbacks . | . . . . . . Impact . | . . . . . . Kinetic . | . . . . . . Secondary . | . . . . . . Self-Inflicted Damage 74 | . . . . 74 . Shots 1 | . . . . 1 . Rammed . | . . . . . . Targets Rammed . | . . . . . . Kicked . | . . . . . . Crushed . | . . . . . . Highest Temperature 312 | . 312 . . 60 152 Average Temperature 93 | . 145 . . 25 47 Received Heat Transfer 9 | . . . . . 9 Effects 1 | . 1 . . . . Energy Bleed 1 | . 1 . . . . Siege Activations . | . . . . . . Robots Corrupted . | . . . . . . Combat Hostiles . | . . . . . . Parts Fried . | . . . . . . Impact Corruptions . | . . . . . . Robots Melted 2 | . . . . 1 1 Combat Hostiles 2 | . . . . 1 1 Parts Melted 2 | . . . . 1 1 Heat Transferred 832 | . 112 . . 560 160 Parts Sabotaged . | . . . . . . Parts Stolen . | . . . . . . Parts Stripped . | . . . . . . Power Chain Reactions . | . . . . . . Missiles Intercepted . | . . . . . . Alert | -11 -10 -10 -10 -9 -8 ------- Run | Scr Mat Min Exi Min Mat Peak Influence 227 | . 77 30 . 227 92 Initial 30 | . . 30 . . 24 Average 46 | . 46 30 . 41 73 Maximum Alert Level 1 | . . . . 1 . Low Security (%) 98 | 100 100 100 . 97 100 Level 1 1 | . . . . 2 . Level 2 . | . . . . . . Level 3 . | . . . . . . Level 4 . | . . . . . . Level 5 . | . . . . . . High Security . | . . . . . . Max Security . | . . . . . . Squads Dispatched 1 | . . . . . 1 Investigation . | . . . . . . Extermination . | . . . . . . Reinforcement 1 | . . . . . 1 Assault . | . . . . . . Garrison . | . . . . . . Intercept . | . . . . . . Construction Impeded 1 | . . . . . 1 Haulers Reinforced . | . . . . . . Cargo Convoy Interrupts . | . . . . . . Stealth | -11 -10 -10 -10 -9 -8 --------- Run | Scr Mat Min Exi Min Mat Distress Signals 1 | . . . . . 1 Communications Jammed . | . . . . . . Distress Signals . | . . . . . . Times Spotted 23 | . 3 . . 11 9 Peak Tracking Total 7 | . 4 . . 4 7 Tactical Retreats . | . . . . . . Traps | -11 -10 -10 -10 -9 -8 ------- Run | Scr Mat Min Exi Min Mat Traps Triggered 1 | . . . . 1 . Indirectly . | . . . . . . Trap Hack Attempts . | . . . . . . Triggered . | . . . . . . Disarmed . | . . . . . . Reprogrammed . | . . . . . . Reused . | . . . . . . Traps Extracted . | . . . . . . Installed . | . . . . . . Triggered . | . . . . . . Machines | -11 -10 -10 -10 -9 -8 ---------- Run | Scr Mat Min Exi Min Mat Machines Disabled 1 | . . . . 1 . Max in Single Turn 1 | . . . . 1 . Machines Sabotaged . | . . . . . . Garrisons Compromised . | . . . . . . Overloaded Fab Kills . | . . . . . . Fab Network Shutdowns . | . . . . . . Hacking | -11 -10 -10 -10 -9 -8 --------- Run | Scr Mat Min Exi Min Mat Machines Accessed 6 | . 1 1 2 1 1 Terminals 3 | . 1 1 . . 1 Fabricators . | . . . . . . Repair Stations . | . . . . . . Recycling Units . | . . . . . . Scanalyzers . | . . . . . . Garrison Access . | . . . . . . Total Hacks 25 | . 13 1 7 1 3 Successful 17 | . 7 1 7 1 1 Failed 8 | . 6 . . . 2 Catastrophic 1 | . . . . . 1 Database Lockouts . | . . . . . . Manual 14 | . 11 1 1 . 1 Terminals 17 | . 13 1 . . 3 Fabricators . | . . . . . . Repair Stations . | . . . . . . Recycling Units . | . . . . . . Scanalyzers . | . . . . . . Garrison Access . | . . . . . . Terminal Hacks 11 | . 2 1 7 1 . Record 7 | . . . 7 . . Open Door 1 | . . . . 1 . Scanalyzer Index 1 | . 1 . . . . Alert Level 1 | . 1 . . . . Zone Layout 1 | . . 1 . . . Fabricator Hacks . | . . . . . . Repair Station Hacks . | . . . . . . Recycling Unit Hacks . | . . . . . . Scanalyzer . | . . . . . . Garrison Access Hacks . | . . . . . . Unauthorized Hacks 6 | . 5 . . . 1 Terminals 6 | . 5 . . . 1 Track 1 | . 1 . . . . Assimilate 1 | . 1 . . . . Botnet 2 | . 1 . . . 1 Disrupt 1 | . 1 . . . . Operators 1 | . 1 . . . . Fabricators . | . . . . . . Repair Stations . | . . . . . . Recycling Units . | . . . . . . Scanalyzers . | . . . . . . Garrison Access . | . . . . . . Data Cores Recovered . | . . . . . . Used . | . . . . . . Hacking Detections 2 | . 1 . . . 1 Full Trace Events . | . . . . . . Feedback Events . | . . . . . . Feedback Blocked . | . . . . . . Robot Schematics Acquired . | . . . . . . Robots Built . | . . . . . . Matter . | . . . . . . Time . | . . . . . . Total Robot Build Rating . | . . . . . . Part Schematics Acquired . | . . . . . . Parts Built . | . . . . . . Matter . | . . . . . . Time . | . . . . . . Total Part Build Rating . | . . . . . . Parts Repaired . | . . . . . . Time . | . . . . . . Parts Recycled . | . . . . . . Recycled Matter . | . . . . . . Retrieved Matter . | . . . . . . Retrieved Components . | . . . . . . Parts Scanalyzed . | . . . . . . Part Schematics Acquired . | . . . . . . Parts Damaged . | . . . . . . Bothacking | -11 -10 -10 -10 -9 -8 ------------ Run | Scr Mat Min Exi Min Mat Used RIF Installer . | . . . . . . Robots Hacked . | . . . . . . Non-combat . | . . . . . . Combat . | . . . . . . Robot Hacks Applied . | . . . . . . Relay Couplers Released . | . . . . . . Robots Rewired . | . . . . . . Allies Hacked . | . . . . . . Hacks Repelled . | . . . . . . Allies | -11 -10 -10 -10 -9 -8 -------- Run | Scr Mat Min Exi Min Mat Total Allies 3 | . . . . 3 . Largest Group 3 | . . . . 3 . Highest-Rated Group 40 | . . . . 40 . Highest-Rated Ally 16 | . . . . 16 . Total Orders . | . . . . . . Ally Attacks 24 | . . . . 24 . Total Damage 186 | . . . . 186 . Kills 4 | . . . . 4 . Allies Corrupted . | . . . . . . Allies Melted . | . . . . . . Intel | -11 -10 -10 -10 -9 -8 ------- Run | Scr Mat Min Exi Min Mat Robot Analysis Total . | . . . . . . Derelict Logs Recovered 2 | . . . . 2 . Drone Launches . | . . . . . . Drone Recoveries . | . . . . . . Exploration | -11 -10 -10 -10 -9 -8 ------------- Run | Scr Mat Min Exi Min Mat Turns Passed 1714 | 20 165 52 357 885 235 Spaces Moved 1586 | 17 125 61 399 872 112 Core 7 | . . . . . 7 Treads . | . . . . . . Legs 49 | 17 32 . . . . Wheels 1530 | . 93 61 399 872 105 Hover . | . . . . . . Flight . | . . . . . . Fastest Speed 80 | 120 80 80 80 90 100 Average Speed 93 | 120 90 80 88 94 114 Slowest Speed 200 | 120 120 80 95 105 200 Overloaded Moves . | . . . . . . Propulsion Burnouts . | . . . . . . Robots Hopped . | . . . . . . Cave-ins Triggered 4 | . . . . . 4 Exploration Rate (%) 37 | 2 28 19 67 98 10 Regions Visited 5 Branch Regions 3 Pre-discovered Areas 1 | . . . 1 . . Known Exits Taken . | . . . . . . Unknown Exits Taken 5 | 1 1 1 1 1 . Scrap Searched 4 | . . . . 4 . Spaces Dug 69 | . . . . 39 30 Terrain Destroyed 200 | . . . . 159 41 Melee 30 | . . . . . 30 Projectile 7 | . . . . 7 . AOE 163 | . . . . 152 11 Terrain Rammed . | . . . . . . Walls Destroyed . | . . . . . . Machines Disabled . | . . . . . . Actions | -11 -10 -10 -10 -9 -8 --------- Run | Scr Mat Min Exi Min Mat Total 1698 | 16 157 63 403 903 156 Wait 35 | . 15 3 . 17 . Move 1578 | 16 124 60 398 871 109 Hop . | . . . . . . Pick Up 7 | . 3 . . 2 2 Fast Attach 4 | . 1 . 2 1 . Attach 3 | . . . . 1 2 Detach 2 | . . . 1 . 1 Swap 3 | . 3 . . . . Drop 9 | . 2 . 2 2 3 Fire 19 | . 9 . . 9 1 Melee 35 | . . . . . 35 Ram . | . . . . . . Kick . | . . . . . . Crush . | . . . . . . Escape Stasis 3 | . . . . . 3 Rewire . | . . . . . . Trap . | . . . . . . Miscellaneous . | . . . . . . Route ------- -11/Scrapyard -10/Materials -10/Mines -10/Exiles (discovered 2 exits: *Min x2) -9/Mines -8/Materials (discovered 2 exits: Fac / Sto) History --------- Turn | Location | Event 1 | -11/Scrapyard | Discovered new exit (range 3) 21 | -11/Scrapyard | Entered Materials 145 | -10/Materials | Met 8R-AWN 182 | -10/Materials | Discovered new exit (range 5) 186 | -10/Materials | Entered Mines 234 | -10/Mines | Deemed a non-threat by the Exiles lab entrance 234 | -10/Mines | Discovered new exit (range 5) 238 | -10/Mines | Entered Exiles 251 | -10/Exiles | Discovered new exit (range 14) 264 | -10/Exiles | Welcomed by 8R-AWN 282 | -10/Exiles | Met EX-HEX 310 | -10/Exiles | Build established: Mutant 318 | -10/Exiles | Met EX-BIN 327 | -10/Exiles | Aligned with FarCom system 328 | -10/Exiles | Given EX-Vault access code 347 | -10/Exiles | Opened EX-Vault 380 | -10/Exiles | Found Prototype Energy Cannon 380 | -10/Exiles | Identified Firepult 386 | -10/Exiles | Found Prototype Energy Cannon 386 | -10/Exiles | Identified YOLO Cannon 408 | -10/Exiles | Warned to stay clear of 0b10 Research branches 434 | -10/Exiles | Met EX-DEC 449 | -10/Exiles | Learned location of Zion (-7) 587 | -10/Exiles | Discovered new exit (range 10) 595 | -10/Exiles | Left Exiles lab with YOLO Cannon 595 | -10/Exiles | Entered Mines 627 | -9/Mines | Met a Derelict bent on vengeance 739 | -9/Mines | Learned 4 Materials zone layouts 756 | -9/Mines | Met a Derelict who couldn't figure out how to use a Trap Extractor 854 | -9/Mines | Learned Materials terminal intel 1011 | -9/Mines | Assisted by bots powering up and referring to "LRC-V3" 1468 | -9/Mines | Discovered new exit (range 10) 1480 | -9/Mines | Entered Materials 1480 | -8/Materials | Evolved 4 slots: Power x1, Propulsion x1, Utility x2 1481 | -8/Materials | Identified exit to Storage 1481 | -8/Materials | Identified exit to Factory 1482 | -8/Materials | Loaded intel: 12 terminal locations 1607 | -8/Materials | Crushed by falling debris 1630 | -8/Materials | Crushed by falling debris 1642 | -8/Materials | Crushed by falling debris 1685 | -8/Materials | Crushed by falling debris 1715 | -8/Materials | Self-destructed Last Messages --------------- 01607_ Crushed by falling debris. 01609_ The unstable cave ceiling collapses. 01630_ Crushed by falling debris. 01642_ The unstable cave ceiling collapses. 01642_ Crushed by falling debris. 01642_ Lgt. Nuclear Core destroyed. 01642_ System corrupted by crushing effect (+2). 01664_ System corrupted: Heat flow error (+183). 01668_ The unstable cave ceiling collapses. 01684_ W-25 Informer sends out distress signal. 01685_ The unstable cave ceiling collapses. 01685_ Crushed by falling debris. 01685_ Propulsion Shielding destroyed. 01685_ Com. Wheel destroyed. 01685_ System corrupted by crushing effect (+5). 01687_ System corrupted: Energy discharge (-24). 01689_ C-30 ARC bursts open, deploying its payload. 01689_ S-10 Pest unfolds itself. 01697_ S-10 Pest destroyed. 01703_ Grenade Launcher destroyed. Map ----- +----------------------------------------------------+ | ?????????????????????????????????????????????????? | | ?????????????????????????????????????????????????? | | ?????????????????????????????????????????????????? | | ?????????????????????????? ## #???? | | ?????????????????????????? ################ #???? | | ?????????????????????????? ##### ## """ ## #???? | | ?????????????????????????? # # """"" ## #???? | | ?????????????????????????? # # """"" ## #???? | | ?????????????????????????? / "" # """"" ## #???? | | ?????????????????????????? # S"" # """ # #???? | | ?????????????????????????? # "" # # #???? | | ?????????????????????????? # # + ##### | | ??????????????????????????######### # # | | ?????????????????????????? ## #??# # # | | ??????????????????????????" ## #??# # # | | ??????????????????????????" # #??# # # | | ########## ###????????????" ####??######### + | | ???????????" #?????????????# # | | ???????????" #?????????????# # | | ??????????? #?????????????# # | | +##########??????????????? #?????????????# # | | #???????????????###?????????????# ##### | | #??????????????????????########## #???? | | #?????????????????????## "%" # #???? | | #######################;"w """ + #???? | | # # #@ssYss[ #" ! """ # #???? | | ##################################" """ # #???? | | #???????????????????????????#T # #???? | | #????????????????????????????" = """ #??????? | | T #????????????????????????????"? """ #??????? | | #????????????????????????????"?! """????????? | | #??????????????????????????????? ?????????? | | # ##???????????????????????????????#/#?????????? | | # #????????????????????????????????????????????? | | # #????????????????????????????????????????????? | | + #????????????????????????????????????????????? | | # #????????????????????????????????????????????? | | # #?????????????????????????????????s??????????? | | # #????????????????????????????????????????????? | | #####????????????????????????????????????????????? | | #????????????????????????????????????????????????? | | #????????????????????????????????????????????????? | | #????????????????????????????????????????????????? | | #????????????????????????????????????????????????? | | #????????????????????????????????????????????????? | | #????????????????????????????????????????????????? | | #????????????????????????????????????????????????? | | ?????????????????????????????????????????????????? | | ?????????????????????????????????????????????????? | | ?????????????????????????????????????????????????? | +----------------------------------------------------+ Best States ------------- Heat Dissipation 31 Energy Generation 14 Energy Capacity 250 Matter Stores 300 Matter Capacity 300 Sight Range 16 Terrain Scan Density 10 Propulsion Shielding 33 Evasion (%) 55 Item Schematics ----------------- None Robot Schematics ------------------ None Fabricated ------------ Nothing Alien Tech Used ----------------- None Achievements -------------- None Challenges ------------ None Game ------ Seed InertialInsulationPenetrator Manual? 0 Play Time 00:18:42 Cumulative 111.8 hours Start 2021.06.04 @ 13:03:18 End 2021.06.05 @ 11:21:23 Sessions 3 Manual Loads 0 Difficulty Rogue Special Mode None Game No. 204 Rogue 201 Adventurer 1 Explorer 2 Win Type - Total 4 Types 4/0/0/0/0/0/0/0/0 Lore% 62 Gallery% 62 Achievement% 53 Wizard Run 0 Options --------- ASCII 0 Keyboard 1 Movement Numpad Keybinds 0 Fullscreen 2 Font 12/Smallcaps Map View 83x54 Tactical HUD 1 Map Filters NONE Filters NONE Steam 1 RUN: 65709fee-3ff1-4ead-8906-1a234eb826ad